fUST/lending_fUST_20260609
["ID","MTS","AMOUNT","RATE_DAILY","PERIOD"]
[424470828,1780938639000,-500.0,0.00016438,2]
[424470826,1780938639000,-500.0,0.00016438,2]
[424470827,1780938639000,-500.0,0.00016438,2]
[424470829,1780938639000,-500.48641238,0.00016438,2]
[424470831,1780938639000,-460.44,0.00016479,3]
[424470771,1780938639000,-500.0,0.00016438,2]
[424470830,1780938639000,-500.0,0.00016438,2]
[424470800,1780938639000,-500.24378878,0.00016438,2]
[424470799,1780938639000,-500.98306177,0.00016438,2]
[424470812,1780938639000,-500.0,0.00016438,2]
[424470806,1780938639000,-500.0,0.00016438,2]
[424470772,1780938639000,-521.81714903,0.00016438,2]
[424470798,1780938639000,-500.0,0.00016438,2]
[424470775,1780938639000,-1004.94,0.00016438,2]
[424470780,1780938639000,-500.0,0.00016438,2]
[424470778,1780938639000,-500.0,0.00016438,2]
[424470781,1780938639000,-500.0,0.00016438,2]
[424470776,1780938639000,-500.47648901,0.00016438,2]
[424470777,1780938639000,-500.0,0.00016438,2]
[424470779,1780938639000,-500.0,0.00016438,2]
[424470793,1780938639000,-500.7015876,0.00016438,2]
[424470783,1780938639000,-500.0,0.00016438,2]
[424470782,1780938639000,-500.0,0.00016438,2]
[424470787,1780938639000,-500.0,0.00016438,2]
[424470784,1780938639000,-500.0,0.00016438,2]
[424470774,1780938639000,-200.00121701,0.00016438,2]
[424470789,1780938639000,-1340.7,0.00016438,2]
[424470786,1780938639000,-500.0,0.00016438,2]
[424470797,1780938639000,-500.48623167,0.00016438,2]
[424470795,1780938639000,-500.0,0.00016438,2]
[424470805,1780938639000,-500.0,0.00016438,2]
[424470796,1780938639000,-500.928777,0.00016438,2]
[424470794,1780938639000,-500.80329648,0.00016438,2]
[424470802,1780938639000,-756.08,0.00016438,2]
[424470785,1780938639000,-495.75649668,0.00016438,2]
[424470790,1780938639000,-500.45313054,0.00016438,2]
[424470792,1780938639000,-515.22,0.00016438,2]
[424470791,1780938639000,-500.0,0.00016438,2]
[424470874,1780938640000,-500.0,0.00016986,2]
[424470873,1780938640000,-500.0,0.00016986,2]
[424470872,1780938640000,-500.0,0.00016986,2]
[424470861,1780938640000,-500.0,0.00016712,2]
[424470869,1780938640000,-500.0,0.00016986,2]
[424470866,1780938640000,-444.0,0.00016837,2]
[424470867,1780938640000,-325.23985279,0.00016938,2]
[424470868,1780938640000,-307.00113015,0.00016938,2]
[424470864,1780938640000,-3625.0,0.00016836,2]
[424470875,1780938640000,-1004.94,0.00016986,2]
[424470862,1780938640000,-500.0,0.00016712,2]
[424470863,1780938640000,-500.0,0.00016712,2]
[424470865,1780938640000,-186.0,0.00016837,2]
[424470876,1780938640000,-500.0,0.00016986,2]
[424470882,1780938640000,-532.31,0.00016986,2]
[424470880,1780938640000,-500.0,0.00016986,2]
[424470879,1780938640000,-500.0,0.00016986,2]
[424470878,1780938640000,-500.0,0.00016986,2]
[424470877,1780938640000,-500.0,0.00016986,2]
[424470881,1780938640000,-500.0,0.00016986,2]
[424470886,1780938640000,-500.0,0.00016986,2]
[424470885,1780938640000,-756.08,0.00016986,2]
[424470887,1780938640000,-500.0,0.00016986,2]
[424470889,1780938640000,-306.21,0.00016986,2]
[424470888,1780938640000,-500.0,0.00016986,2]
[424470859,1780938640000,-263.66,0.00016712,2]
[424470883,1780938640000,-1340.7,0.00016986,2]
[424470870,1780938640000,-500.0,0.00016986,2]
[424470832,1780938640000,-500.0,0.00016712,2]
[424470860,1780938640000,-500.0,0.00016712,2]
[424470890,1780938640000,-500.0,0.00016986,2]
[424470833,1780938640000,-500.0,0.00016712,2]
[424470834,1780938640000,-500.0,0.00016712,2]
[424470836,1780938640000,-500.0,0.00016712,2]
[424470835,1780938640000,-500.0,0.00016712,2]
[424470846,1780938640000,-500.0,0.00016712,2]
[424470841,1780938640000,-373.52,0.00016712,2]
[424470839,1780938640000,-500.0,0.00016712,2]
[424470845,1780938640000,-500.0,0.00016712,2]
[424470840,1780938640000,-500.0,0.00016712,2]
[424470837,1780938640000,-500.0,0.00016712,2]
[424470843,1780938640000,-260.55,0.00016712,2]
[424470842,1780938640000,-500.0,0.00016712,2]
[424470838,1780938640000,-1004.94,0.00016712,2]
[424470844,1780938640000,-500.0,0.00016712,2]
[424470847,1780938640000,-500.0,0.00016712,2]
[424470851,1780938640000,-756.08,0.00016712,2]
[424470849,1780938640000,-500.0,0.00016712,2]
[424470854,1780938640000,-500.3830588,0.00016712,2]
[424470850,1780938640000,-500.70283132,0.00016712,2]
[424470856,1780938640000,-486.07,0.00016712,2]
[424470852,1780938640000,-541.68667834,0.00016712,2]
[424470848,1780938640000,-1340.7,0.00016712,2]
[424470858,1780938640000,-500.0,0.00016712,2]
[424470855,1780938640000,-307.06,0.00016712,2]
[424470853,1780938640000,-500.0,0.00016712,2]
[424470857,1780938640000,-500.0,0.00016712,2]
[424470871,1780938640000,-500.0,0.00016986,2]
[424470891,1780938640000,-500.0,0.00016986,2]
[424470884,1780938640000,-500.0,0.00016986,2]
[424470893,1780938640000,-158.0,0.00017068,3]
[424470934,1780938640000,-500.0,0.00017534,2]
[424470946,1780938640000,-271.04237931,0.00017534,2]
[424470944,1780938640000,-1340.7,0.00017534,2]
[424470940,1780938640000,-577.51328019,0.00017534,2]
[424470942,1780938640000,-500.0,0.00017534,2]
[424470948,1780938640000,-756.08,0.00017534,2]
[424470950,1780938640000,-500.0,0.00017534,2]
[424470958,1780938640000,-179.97041996,0.00017756,2]
[424470954,1780938640000,-500.0,0.00017534,2]
[424470952,1780938640000,-500.0,0.00017534,2]
[424470956,1780938640000,-284.02,0.00017534,2]
[424470969,1780938640000,-500.0,0.00017808,2]
[424470960,1780938640000,-158.7548538,0.00017756,2]
[424470965,1780938640000,-187.2364579,0.00017756,2]
[424470962,1780938640000,-175.06769979,0.00017756,2]
[424470963,1780938640000,-195.05666751,0.00017756,2]
[424470971,1780938640000,-500.0,0.00017808,2]
[424470967,1780938640000,-161.0742014,0.00017756,2]
[424470973,1780938640000,-500.0,0.00017808,2]
[424470974,1780938640000,-500.0,0.00017808,2]
[424470976,1780938640000,-500.0,0.00017808,2]
[424470978,1780938640000,-1004.94,0.00017808,2]
[424470980,1780938640000,-500.0,0.00017808,2]
[424470983,1780938640000,-500.0,0.00017808,2]
[424470985,1780938640000,-500.0,0.00017808,2]
[424470989,1780938640000,-500.0,0.00017808,2]
[424470894,1780938640000,-500.0,0.0001726,2]
[424470930,1780938640000,-1004.94,0.00017534,2]
[424470938,1780938640000,-500.0,0.00017534,2]
[424470987,1780938640000,-500.0,0.00017808,2]
[424470936,1780938640000,-500.0,0.00017534,2]
[424470892,1780938640000,-500.0,0.00016986,2]
[424470932,1780938640000,-500.0,0.00017534,2]
[424470895,1780938640000,-500.0,0.0001726,2]
[424470897,1780938640000,-500.0,0.0001726,2]
[424470901,1780938640000,-500.0,0.0001726,2]
[424470902,1780938640000,-500.0,0.0001726,2]
[424470904,1780938640000,-500.0,0.0001726,2]
[424470900,1780938640000,-1004.94,0.0001726,2]
[424470903,1780938640000,-500.0,0.0001726,2]
[424470898,1780938640000,-500.0,0.0001726,2]
[424470899,1780938640000,-500.0,0.0001726,2]
[424470905,1780938640000,-500.0,0.0001726,2]
[424470906,1780938640000,-500.0,0.0001726,2]
[424470907,1780938640000,-1340.7,0.0001726,2]
[424470896,1780938640000,-309.99562977,0.0001726,2]
[424470919,1780938640000,-372.97,0.0001726,2]
[424470914,1780938640000,-500.0,0.0001726,2]
[424470928,1780938640000,-500.0,0.00017534,2]
[424470925,1780938640000,-500.0,0.00017534,2]
[424470924,1780938640000,-500.0,0.00017534,2]
[424470922,1780938640000,-500.0,0.00017534,2]
[424470920,1780938640000,-150.0,0.00017388,2]
[424470926,1780938640000,-500.0,0.00017534,2]
[424470918,1780938640000,-500.0,0.0001726,2]
[424470908,1780938640000,-500.0,0.0001726,2]
[424470913,1780938640000,-500.0,0.0001726,2]
[424470909,1780938640000,-756.08,0.0001726,2]
[424470916,1780938640000,-469.14260794,0.0001726,2]
[424470911,1780938640000,-500.0,0.0001726,2]
[424471071,1780938641000,-756.08,0.00018082,2]
[424471064,1780938641000,-400.64523453,0.00018082,2]
[424471067,1780938641000,-500.0,0.00018082,2]
[424471065,1780938641000,-500.0,0.00018082,2]
[424471056,1780938641000,-500.0,0.00018082,2]
[424471058,1780938641000,-1004.94,0.00018082,2]
[424471062,1780938641000,-500.0,0.00018082,2]
[424471074,1780938641000,-500.0,0.00018082,2]
[424471060,1780938641000,-500.0,0.00018082,2]
[424471054,1780938641000,-500.0,0.00018082,2]
[424471053,1780938641000,-500.0,0.00018082,2]
[424471088,1780938641000,-324.23422228,0.00018356,2]
[424471078,1780938641000,-329.03810189,0.00018082,2]
[424471076,1780938641000,-500.0,0.00018082,2]
[424471080,1780938641000,-152.52135603,0.00018356,2]
[424471082,1780938641000,-500.0,0.00018356,2]
[424471084,1780938641000,-500.0,0.00018356,2]
[424471090,1780938641000,-1004.94,0.00018356,2]
[424471086,1780938641000,-500.0,0.00018356,2]
[424471092,1780938641000,-500.0,0.00018356,2]
[424471094,1780938641000,-500.0,0.00018356,2]
[424471101,1780938641000,-500.0,0.00018356,2]
[424471106,1780938641000,-625.93133112,0.00018356,2]
[424471046,1780938641000,-2000.0,0.00017943,7]
[424471103,1780938641000,-500.0,0.00018356,2]
[424471069,1780938641000,-1340.7,0.00018082,2]
[424471051,1780938641000,-500.0,0.00018082,2]
[424471019,1780938641000,-170.75701131,0.00017826,2]
[424471045,1780938641000,-157.64999843,0.00017826,2]
[424471121,1780938641000,-158.76939284,0.00018569,2]
[424470995,1780938641000,-500.0,0.00017808,2]
[424470993,1780938641000,-756.08,0.00017808,2]
[424470999,1780938641000,-500.0,0.00017808,2]
[424470991,1780938641000,-1340.7,0.00017808,2]
[424470997,1780938641000,-500.0,0.00017808,2]
[424471001,1780938641000,-1000.0,0.00017821,2]
[424471005,1780938641000,-1100.0,0.00017824,2]
[424471013,1780938641000,-155.06130651,0.00017825,2]
[424471007,1780938641000,-170.0,0.00017824,2]
[424471003,1780938641000,-791.0,0.00017821,2]
[424471011,1780938641000,-162.83959561,0.00017825,2]
[424471009,1780938641000,-230.0,0.00017824,2]
[424471017,1780938641000,-224.35078273,0.00017825,2]
[424471021,1780938641000,-203.09649016,0.00017826,2]
[424471023,1780938641000,-191.50156448,0.00017826,2]
[424471025,1780938641000,-164.24619909,0.00017826,2]
[424471037,1780938641000,-162.97642184,0.00017826,2]
[424471031,1780938641000,-194.26289363,0.00017826,2]
[424471032,1780938641000,-268.70346218,0.00017826,2]
[424471039,1780938641000,-345.36422747,0.00017826,2]
[424471034,1780938641000,-150.19675272,0.00017826,2]
[424471041,1780938641000,-186.78549425,0.00017826,2]
[424471027,1780938641000,-168.47395774,0.00017826,2]
[424471029,1780938641000,-156.19470291,0.00017826,2]
[424471048,1780938641000,-500.0,0.00018082,2]
[424471113,1780938641000,-714.76866888,0.00018356,2]
[424471043,1780938641000,-169.34831989,0.00017826,2]
[424471123,1780938641000,-161.53107687,0.00018569,2]
[424471191,1780938641000,-448.70156545,0.00018642,2]
[424471180,1780938641000,-162.38440097,0.00018642,2]
[424471197,1780938641000,-406.19298033,0.00018643,2]
[424471195,1780938641000,-341.51402263,0.00018643,2]
[424471182,1780938641000,-181.30710083,0.00018642,2]
[424471201,1780938641000,-336.94791549,0.00018643,2]
[424471188,1780938641000,-310.12261301,0.00018642,2]
[424471186,1780938641000,-153.97585592,0.00018642,2]
[424471199,1780938641000,-383.00312896,0.00018643,2]
[424471185,1780938641000,-165.12768261,0.00018642,2]
[424471203,1780938641000,-312.38940582,0.00018643,2]
[424471205,1780938641000,-388.52578727,0.00018643,2]
[424471192,1780938641000,-227.16425148,0.00018642,2]
[424471207,1780938641000,-200.3975111,0.00018643,2]
[424471211,1780938641000,-187.90776151,0.00018643,2]
[424471213,1780938641000,-190.64419564,0.00018643,2]
[424471223,1780938641000,-690.72845493,0.00018643,2]
[424471227,1780938641000,-373.57098849,0.00018643,2]
[424471221,1780938641000,-325.95284368,0.00018643,2]
[424471219,1780938641000,-300.39350544,0.00018643,2]
[424471215,1780938641000,-175.97551578,0.00018643,2]
[424471230,1780938641000,-208.49838858,0.00018643,2]
[424471235,1780938641000,-315.29999686,0.00018643,2]
[424471232,1780938641000,-338.69663978,0.00018643,2]
[424471238,1780938641000,-152.0,0.00018684,7]
[424471115,1780938641000,-756.08,0.00018356,2]
[424471209,1780938641000,-328.49239818,0.00018643,2]
[424471178,1780938641000,-155.13199987,0.00018642,2]
[424471217,1780938641000,-537.40692437,0.00018643,2]
[424471174,1780938641000,-633.55,0.0001863,2]
[424471176,1780938641000,-325.67919122,0.00018642,2]
[424471119,1780938641000,-500.0,0.00018356,2]
[424471117,1780938641000,-500.0,0.00018356,2]
[424471127,1780938641000,-191.77952472,0.0001857,2]
[424471133,1780938641000,-239.86590418,0.0001857,2]
[424471125,1780938641000,-359.94083992,0.0001857,2]
[424471136,1780938641000,-390.11333501,0.0001857,2]
[424471144,1780938641000,-1100.0,0.00018571,2]
[424471146,1780938641000,-170.0,0.00018571,2]
[424471131,1780938641000,-350.13539957,0.0001857,2]
[424471148,1780938641000,-151.0,0.000186,2]
[424471140,1780938641000,-374.4729158,0.0001857,2]
[424471138,1780938641000,-169.92336776,0.0001857,2]
[424471129,1780938641000,-317.50970759,0.0001857,2]
[424471150,1780938641000,-500.0,0.0001863,2]
[424471160,1780938641000,-500.0,0.0001863,2]
[424471142,1780938641000,-322.1484028,0.0001857,2]
[424471154,1780938641000,-500.0,0.0001863,2]
[424471170,1780938641000,-181.10072625,0.0001863,2]
[424471168,1780938641000,-756.08,0.0001863,2]
[424471164,1780938641000,-500.0,0.0001863,2]
[424471156,1780938641000,-1004.94,0.0001863,2]
[424471158,1780938641000,-500.0,0.0001863,2]
[424471162,1780938641000,-500.0,0.0001863,2]
[424471152,1780938641000,-500.0,0.0001863,2]
[424471166,1780938641000,-1340.7,0.0001863,2]
[424471172,1780938641000,-500.0,0.0001863,2]
[424471288,1780938642000,-159.14374237,0.00019113,2]
[424471293,1780938642000,-226.98462429,0.00019113,2]
[424471299,1780938642000,-585.17000252,0.00019113,2]
[424471295,1780938642000,-298.21847507,0.00019113,2]
[424471290,1780938642000,-476.26456139,0.00019113,2]
[424471298,1780938642000,-479.73180836,0.00019113,2]
[424471300,1780938642000,-176.65705106,0.00019113,2]
[424471303,1780938642000,-339.84673553,0.00019113,2]
[424471302,1780938642000,-561.7093737,0.00019113,2]
[424471301,1780938642000,-156.56032621,0.00019113,2]
[424471307,1780938642000,-500.0,0.00019178,2]
[424471306,1780938642000,-500.0,0.00019178,2]
[424471309,1780938642000,-500.0,0.00019178,2]
[424471310,1780938642000,-360.57778076,0.00019178,2]
[424471313,1780938642000,-1289.6305,0.00019178,2]
[424471312,1780938642000,-300.0,0.00019178,2]
[424471308,1780938642000,-1004.94,0.00019178,2]
[424471311,1780938642000,-1289.6305,0.00019178,2]
[424471297,1780938642000,-156.33857692,0.00019113,2]
[424471305,1780938642000,-289.3187833,0.00019113,2]
[424471304,1780938642000,-430.85835822,0.00019113,2]
[424471296,1780938642000,-164.44539645,0.00019113,2]
[424471256,1780938642000,-756.08,0.00018904,2]
[424471271,1780938642000,-1100.0,0.0001911,5]
[424471324,1780938642000,-196.20353044,0.00019187,2]
[424471243,1780938642000,-500.0,0.00018904,2]
[424471245,1780938642000,-500.0,0.00018904,2]
[424471241,1780938642000,-815.62710794,0.00018799,2]
[424471244,1780938642000,-500.0,0.00018904,2]
[424471246,1780938642000,-1004.94,0.00018904,2]
[424471248,1780938642000,-500.0,0.00018904,2]
[424471259,1780938642000,-500.0,0.00018904,2]
[424471264,1780938642000,-12446.37092781,0.00018914,2]
[424471261,1780938642000,-633.55,0.00018904,2]
[424471286,1780938642000,-383.55904944,0.00019113,2]
[424471247,1780938642000,-500.0,0.00018904,2]
[424471249,1780938642000,-500.0,0.00018904,2]
[424471251,1780938642000,-500.0,0.00018904,2]
[424471266,1780938642000,-160.0,0.00018994,3]
[424471283,1780938642000,-539.91125988,0.00019113,2]
[424471282,1780938642000,-323.06215374,0.00019111,2]
[424471274,1780938642000,-500.0,0.0001911,5]
[424471278,1780938642000,-317.53878567,0.00019111,2]
[424471280,1780938642000,-197.2338369,0.00019111,2]
[424471269,1780938642000,-151.0,0.00019,2]
[424471276,1780938642000,-170.0,0.0001911,5]
[424471254,1780938642000,-1340.7,0.00018904,2]
[424471323,1780938642000,-633.55,0.00019178,2]
[424471314,1780938642000,-1289.6305,0.00019178,2]
[424471327,1780938642000,-488.51878683,0.00019187,2]
[424471354,1780938642000,-609.28947049,0.00019187,2]
[424471362,1780938642000,-492.73859728,0.00019187,2]
[424471365,1780938642000,-281.56480637,0.00019187,2]
[424471367,1780938642000,-505.42187323,0.00019187,2]
[424471369,1780938642000,-468.58410874,0.00019187,2]
[424471381,1780938642000,-256.30551002,0.00019187,2]
[424471371,1780938642000,-400.79502219,0.00019187,2]
[424471373,1780938642000,-582.7886809,0.00019187,2]
[424471375,1780938642000,-375.81552302,0.00019187,2]
[424471377,1780938642000,-381.28839127,0.00019187,2]
[424471383,1780938642000,-351.95103155,0.00019187,2]
[424471379,1780938642000,-250.25740535,0.00019187,2]
[424471385,1780938642000,-806.11038655,0.00019187,2]
[424471387,1780938642000,-289.80091181,0.00019187,2]
[424471386,1780938642000,-450.59025816,0.00019187,2]
[424471388,1780938642000,-253.05448148,0.00019187,2]
[424471389,1780938642000,-488.92926552,0.00019187,2]
[424471326,1780938642000,-200.00119625,0.00019187,2]
[424471391,1780938642000,-233.77900362,0.00019187,2]
[424471393,1780938642000,-416.99677717,0.00019187,2]
[424471392,1780938642000,-560.35648274,0.00019187,2]
[424471358,1780938642000,-187.38549467,0.00019187,2]
[424471356,1780938642000,-574.50469344,0.00019187,2]
[424471390,1780938642000,-1036.0926824,0.00019187,2]
[424471360,1780938642000,-226.71660342,0.00019187,2]
[424471363,1780938642000,-278.97610542,0.00019187,2]
[424471319,1780938642000,-1340.7,0.00019178,2]
[424471320,1780938642000,-756.08,0.00019178,2]
[424471316,1780938642000,-500.0,0.00019178,2]
[424471318,1780938642000,-500.0,0.00019178,2]
[424471329,1780938642000,-266.65280337,0.00019187,2]
[424471325,1780938642000,-240.88823072,0.00019187,2]
[424471339,1780938642000,-673.05234818,0.00019187,2]
[424471331,1780938642000,-324.76880194,0.00019187,2]
[424471343,1780938642000,-186.09643919,0.00019187,2]
[424471322,1780938642000,-500.0,0.00019178,2]
[424471341,1780938642000,-454.32850296,0.00019187,2]
[424471330,1780938642000,-310.26399973,0.00019187,2]
[424471347,1780938642000,-512.27103394,0.00019187,2]
[424471337,1780938642000,-465.18391952,0.00019187,2]
[424471334,1780938642000,-330.25536521,0.00019187,2]
[424471349,1780938642000,-253.88109755,0.00019187,2]
[424471333,1780938642000,-198.80327127,0.00019187,2]
[424471332,1780938642000,-362.61420165,0.00019187,2]
[424471345,1780938642000,-500.0,0.00019187,5]
[424471335,1780938642000,-307.95171183,0.00019187,2]
[424471351,1780938642000,-184.07461497,0.00019187,2]
[424471412,1780938643000,-151.0,0.00019352,2]
[424471434,1780938643000,-800.0,0.00019425,2]
[424471422,1780938643000,-800.0,0.00019373,2]
[424471425,1780938643000,-800.0,0.00019378,2]
[424471430,1780938643000,-800.0,0.00019394,2]
[424471433,1780938643000,-800.0,0.0001942,2]
[424471431,1780938643000,-800.0,0.00019399,2]
[424471426,1780938643000,-800.0,0.00019379,2]
[424471435,1780938643000,-800.0,0.00019444,2]
[424471427,1780938643000,-800.0,0.00019386,2]
[424471429,1780938643000,-800.0,0.00019392,2]
[424471428,1780938643000,-160.0,0.0001939,4]
[424471437,1780938643000,-800.0,0.00019448,2]
[424471446,1780938643000,-1340.7,0.00019452,2]
[424471447,1780938643000,-756.08,0.00019452,2]
[424471411,1780938643000,-151.0,0.00019352,2]
[424471432,1780938643000,-800.0,0.00019402,2]
[424471408,1780938643000,-800.0,0.00019329,2]
[424471400,1780938643000,-800.0,0.00019247,2]
[424471409,1780938643000,-151.0,0.00019352,2]
[424471448,1780938643000,-500.0,0.00019452,2]
[424471402,1780938643000,-800.0,0.00019265,2]
[424471398,1780938643000,-800.0,0.00019213,2]
[424471397,1780938643000,-800.0,0.00019207,2]
[424471396,1780938643000,-800.0,0.00019203,2]
[424471394,1780938643000,-508.04495967,0.00019187,2]
[424471395,1780938643000,-472.94999529,0.00019187,2]
[424471401,1780938643000,-800.0,0.00019265,2]
[424471399,1780938643000,-800.0,0.00019245,2]
[424471404,1780938643000,-403.60219193,0.00019288,2]
[424471420,1780938643000,-800.0,0.00019369,2]
[424471406,1780938643000,-800.0,0.00019319,2]
[424471416,1780938643000,-151.0,0.00019352,2]
[424471419,1780938643000,-800.0,0.00019361,2]
[424471414,1780938643000,-151.0,0.00019352,2]
[424471403,1780938643000,-854.6738844,0.00019285,2]
[424471405,1780938643000,-800.0,0.00019307,2]
[424471410,1780938643000,-151.0,0.00019352,2]
[424471436,1780938643000,-800.0,0.00019448,2]
[424471441,1780938643000,-500.0,0.00019452,2]
[424471442,1780938643000,-1004.94,0.00019452,2]
[424471473,1780938643000,-18820.89322015,0.000195,2]
[424471472,1780938643000,-500.18928184,0.00016438,2]
[424471463,1780938643000,-328.89079289,0.00019475,2]
[424471465,1780938643000,-313.12065241,0.00019475,2]
[424471466,1780938643000,-312.67715383,0.00019475,2]
[424471468,1780938643000,-748.9458316,0.00019475,2]
[424471467,1780938643000,-509.77010329,0.00019475,2]
[424471464,1780938643000,-353.31410211,0.00019475,2]
[424471470,1780938643000,-450.0,0.00019486,5]
[424471469,1780938643000,-646.28753733,0.00019475,2]
[424471474,1780938643000,-17595.05056798,0.000195,2]
[424471475,1780938643000,-15335.27516817,0.000195,2]
[424471502,1780938643000,-275.79946348,0.00016438,2]
[424471504,1780938643000,-224.20053652,0.00016438,2]
[424471506,1780938643000,-500.0,0.00016438,2]
[424471508,1780938643000,-500.0,0.00016712,2]
[424471471,1780938643000,-25719.62552672,0.000195,2]
[424471450,1780938643000,-800.0,0.00019455,2]
[424471438,1780938643000,-800.0,0.00019451,2]
[424471458,1780938643000,-400.0023925,0.00019473,2]
[424471454,1780938643000,-374.77098935,0.00019473,2]
[424471510,1780938643000,-194.77396348,0.00016712,2]
[424471439,1780938643000,-241.52849864,0.00019452,2]
[424471440,1780938643000,-500.0,0.00019452,2]
[424471445,1780938643000,-500.0,0.00019452,2]
[424471444,1780938643000,-500.0,0.00019452,2]
[424471443,1780938643000,-500.0,0.00019452,2]
[424471455,1780938643000,-557.95221084,0.00019473,2]
[424471449,1780938643000,-633.55,0.00019452,2]
[424471460,1780938643000,-575.33857417,0.00019475,2]
[424471457,1780938643000,-481.77646145,0.00019473,2]
[424471452,1780938643000,-800.0,0.00019469,2]
[424471456,1780938643000,-394.46767381,0.00019473,2]
[424471462,1780938643000,-635.01941519,0.00019475,2]
[424471461,1780938643000,-365.93000428,0.00019475,2]
[424471451,1780938643000,-2829.3167452,0.00019461,2]
[424471459,1780938643000,-719.88167984,0.00019475,2]
[424471453,1780938643000,-449.51891892,0.00019473,2]
[424471602,1780938646000,-323.9379614,0.00016986,2]
[424471598,1780938646000,-5000.0,0.00016274,2]
[424471600,1780938646000,-305.92144506,0.00016712,2]
[424471601,1780938646000,-106.9320386,0.00016986,2]
[424471603,1780938646000,-676.0620386,0.00017,2]
[424471599,1780938646000,-500.59295022,0.00016438,2]
[424471604,1780938646000,-411.5494824,0.00017,2]
[424471605,1780938646000,-1000.0,0.000175,2]
[424471610,1780938646000,-18991.65973386,0.000195,2]
[424471607,1780938646000,-1000.0,0.000185,2]
[424471608,1780938646000,-152.0,0.00018996,7]
[424471606,1780938646000,-1000.0,0.00018,2]
[424471609,1780938646000,-1000.0,0.00019,2]
[424471616,1780939320000,4870.97736133,7.6e-05,2]
[424471665,1780939832000,-3493.17958051,8.558e-05,2]
[424471662,1780939832000,-1166.7211725,8.558e-05,2]
[424471720,1780939838000,-500.0,8.998e-05,2]
[424471711,1780939838000,-223.00167028,8.819e-05,2]
[424471716,1780939838000,-500.0,8.998e-05,2]
[424471717,1780939838000,-500.0,8.998e-05,2]
[424471721,1780939838000,-500.0,8.998e-05,2]
[424471715,1780939838000,-500.0,8.998e-05,2]
[424471714,1780939838000,-500.0,8.998e-05,2]
[424471713,1780939838000,-500.0,8.998e-05,2]
[424471712,1780939838000,-500.0,8.998e-05,2]
[424471707,1780939838000,-500.0,8.819e-05,2]
[424471709,1780939838000,-500.0,8.819e-05,2]
[424471705,1780939838000,-260.0,8.818e-05,2]
[424471703,1780939838000,-5000.0,8.644e-05,2]
[424471708,1780939838000,-345.03679457,8.819e-05,2]
[424471706,1780939838000,-314.03709479,8.819e-05,2]
[424471704,1780939838000,-5000.0,8.731e-05,2]
[424471702,1780939838000,-340.09924699,8.558e-05,2]
[424471718,1780939838000,-565.34270699,8.998e-05,2]
[424471710,1780939838000,-500.0,8.819e-05,2]
[424471722,1780939838000,-500.0,8.998e-05,2]
[424471732,1780939838000,-500.0,8.998e-05,2]
[424471738,1780939838000,-878.8225944,0.00011044,2]
[424471744,1780939838000,-2386.77551363,0.00013952,2]
[424471743,1780939838000,-4298.11220208,0.00013952,2]
[424471745,1780939838000,-500.0,0.00014226,2]
[424471742,1780939838000,-370.830864,0.00013699,2]
[424471741,1780939838000,-500.0,0.00013549,2]
[424471739,1780939838000,-250.0,0.00011653,2]
[424471740,1780939838000,-6684.88771574,0.00012051,2]
[424471737,1780939838000,-2414.39694897,0.00011,2]
[424471736,1780939838000,-277.4671013,0.00010959,2]
[424471728,1780939838000,-500.0,8.998e-05,2]
[424471733,1780939838000,-500.0,8.998e-05,2]
[424471727,1780939838000,-500.0,8.998e-05,2]